[Event "2026 Biel Blitz Open"]
[Site "Biel, CH"]
[Date "2026.07.19"]
[Round "3"]
[White "Ragavan, Samarth Rajesh"]
[Black "Freuler, Roman"]
[Result "1-0"]
[Board "28"]
[TimeControl "180+2"]
[WhiteFideId "39918106"]
[BlackFideId "1304283"]
[WhiteElo "2101"]
[BlackElo "1852"]
[WhiteClock "0:01:52"]
[BlackClock "0:00:16"]
[Variant "Standard"]
[EndDate "2026.07.19"]
[EndTime "12:36:30"]

1. d4 {[%clk 0:03:04]}  Nf6 {[%clk 0:03:03]} 2. c4 {[%clk 0:03:05]}  c5 {[%clk 0:03:05]} 3. d5 {[%clk 0:03:07]}  b5 {[%clk 0:03:06]}
4. cxb5 {[%clk 0:03:07]}  a6 {[%clk 0:03:07]} 5. bxa6 {[%clk 0:03:08]}  Bxa6 {[%clk 0:03:08]} 6. Nc3 {[%clk 0:03:07]}  g6 {[%clk 0:03:08]}
7. g3 {[%clk 0:03:08]}  Bg7 {[%clk 0:03:09]} 8. Bg2 {[%clk 0:03:09]}  d6 {[%clk 0:03:10]} 9. Nf3 {[%clk 0:03:10]}  O-O {[%clk 0:03:10]}
10. O-O {[%clk 0:03:11]}  Nbd7 {[%clk 0:03:11]} 11. Re1 {[%clk 0:03:11]}  Qa5 {[%clk 0:03:06]} 12. Bd2 {[%clk 0:03:10]}  Rfb8 {[%clk 0:03:05]}
13. Qc1 {[%clk 0:03:08]}  Bb7 {[%clk 0:02:31]} 14. e4 {[%clk 0:03:07]}  Ng4 {[%clk 0:02:24]} 15. h3 {[%clk 0:03:05]}  Nge5 {[%clk 0:02:25]}
16. Nxe5 {[%clk 0:03:05]}  Nxe5 {[%clk 0:02:26]} 17. Qc2 {[%clk 0:02:57]}  Ba6 {[%clk 0:02:27]} 18. Ne2 {[%clk 0:02:37]}  Qb6 {[%clk 0:02:14]}
19. Bc3 {[%clk 0:02:38]}  Nd3 {[%clk 0:01:44]} 20. Reb1 {[%clk 0:02:20]}  c4 {[%clk 0:01:45]} 21. Nf4 {[%clk 0:02:17]}  Nxf4 {[%clk 0:01:24]}
22. gxf4 {[%clk 0:02:17]}  Bd4 {[%clk 0:01:23]} 23. Bxd4 {[%clk 0:02:13]}  Qxd4 {[%clk 0:01:24]} 24. Qc3 {[%clk 0:02:12]}  Qc5 {[%clk 0:01:08]}
25. e5 {[%clk 0:02:12]}  Rb6 {[%clk 0:01:05]} 26. exd6 {[%clk 0:01:55]}  exd6 {[%clk 0:01:07]} 27. Re1 {[%clk 0:01:56]}  Rab8 {[%clk 0:01:03]}
28. Re2 {[%clk 0:01:57]}  Bb7 {[%clk 0:00:15]} 29. Rae1 {[%clk 0:01:56]}  Rf8 {[%clk 0:00:16]} 30. Re8 {[%clk 0:01:52]} 1-0

[Event "2026 Biel Blitz Open"]
[Site "Biel, CH"]
[Date "2026.07.19"]
[Round "3"]
[White "Sharku, Burim"]
[Black "Stefan, Romulus-Cristian"]
[Result "0-1"]
[Board "30"]
[TimeControl "180+2"]
[WhiteFideId "551075466"]
[BlackFideId "1232835"]
[WhiteElo "1843"]
[BlackElo "2048"]
[BlackTitle "CM"]
[WhiteClock "0:02:00"]
[BlackClock "0:00:27"]
[Variant "Standard"]
[EndDate "2026.07.19"]
[EndTime "12:27:08"]

1. Nf3 {[%clk 0:03:02]}  d5 {[%clk 0:03:03]} 2. g3 {[%clk 0:03:04]}  Nf6 {[%clk 0:03:04]} 3. Bg2 {[%clk 0:03:05]}  c6 {[%clk 0:03:05]}
4. O-O {[%clk 0:03:06]}  Bg4 {[%clk 0:03:06]} 5. b3 {[%clk 0:03:07]}  Nbd7 {[%clk 0:03:07]} 6. Bb2 {[%clk 0:03:08]}  e6 {[%clk 0:03:09]}
7. d3 {[%clk 0:03:09]}  Bd6 {[%clk 0:03:09]} 8. Nbd2 {[%clk 0:03:09]}  O-O {[%clk 0:03:10]} 9. e4 {[%clk 0:03:11]}  e5 {[%clk 0:03:12]}
10. h3 {[%clk 0:03:08]}  Bh5 {[%clk 0:03:13]} 11. c4 {[%clk 0:03:07]}  Nc5 {[%clk 0:03:12]} 12. d4 {[%clk 0:03:00]}  dxe4 {[%clk 0:03:04]}
13. dxc5 {[%clk 0:02:54]}  exf3 {[%clk 0:03:05]} 14. Bxf3 {[%clk 0:02:43]}  Bxf3 {[%clk 0:03:05]} 15. Nxf3 {[%clk 0:02:41]}  Bxc5 {[%clk 0:03:03]}
16. Nxe5 {[%clk 0:02:30]}  Qc7 {[%clk 0:03:05]} 17. Qf3 {[%clk 0:02:15]}  Rad8 {[%clk 0:02:57]} 18. Rad1 {[%clk 0:02:10]}  Rfe8 {[%clk 0:02:49]}
19. Rxd8 {[%clk 0:02:03]}  Rxd8 {[%clk 0:02:50]} 20. Nd3 {[%clk 0:01:58]}  Bd4 {[%clk 0:02:51]} 21. Bc1 {[%clk 0:01:50]}  Qd7 {[%clk 0:02:38]}
22. Bg5 {[%clk 0:01:41]}  Qxh3 {[%clk 0:02:37]} 23. Nf4 {[%clk 0:01:23]}  Qf5 {[%clk 0:02:31]} 24. Rd1 {[%clk 0:01:18]}  Qxg5 {[%clk 0:02:31]}
25. c5 {[%clk 0:01:12]}  Qg4 {[%clk 0:02:27]} 26. Kg2 {[%clk 0:00:58]}  g5 {[%clk 0:02:16]} 27. Ne2 {[%clk 0:00:51]}  Qxf3+ {[%clk 0:02:09]}
28. Kxf3 {[%clk 0:00:51]}  g4+ {[%clk 0:02:07]} 29. Kg2 {[%clk 0:00:45]}  Ne4 {[%clk 0:02:03]} 30. Nxd4 {[%clk 0:00:36]}  Nxc5 {[%clk 0:02:01]}
31. f4 {[%clk 0:00:33]}  Ne6 {[%clk 0:02:00]} 32. Nxe6 {[%clk 0:00:23]}  Rxd1 {[%clk 0:02:01]} 33. Ng5 {[%clk 0:00:24]}  Rd2+ {[%clk 0:02:01]}
34. Kf1 {[%clk 0:00:23]}  Rxa2 {[%clk 0:02:00]} 35. Ne4 {[%clk 0:00:27]}  Kg7 {[%clk 0:01:56]} 36. Nc5 {[%clk 0:00:28]}  b6 {[%clk 0:01:57]}
37. Ne4 {[%clk 0:00:29]}  Rb2 {[%clk 0:01:56]} 38. Ng5 {[%clk 0:00:28]}  Rxb3 {[%clk 0:01:54]} 39. Kf2 {[%clk 0:00:29]}  Rb4 {[%clk 0:01:52]}
40. Ke2 {[%clk 0:00:25]}  h6 {[%clk 0:01:52]} 41. Nxf7 {[%clk 0:00:19]}  Kxf7 {[%clk 0:01:53]} 42. f5 {[%clk 0:00:21]}  Kf6 {[%clk 0:01:54]}
43. Kf2 {[%clk 0:00:22]}  Kxf5 {[%clk 0:01:56]} 44. Kg2 {[%clk 0:00:24]}  Rb2+ {[%clk 0:01:57]} 45. Kf1 {[%clk 0:00:25]}  Ke4 {[%clk 0:01:58]}
46. Ke1 {[%clk 0:00:26]}  Kd3 {[%clk 0:01:59]} 47. Kd1 {[%clk 0:00:27]}  Rb1# {[%clk 0:02:00]} 0-1

[Event "2026 Biel Blitz Open"]
[Site "Biel, CH"]
[Date "2026.07.19"]
[Round "3"]
[White "Bajraktari, Perparim"]
[Black "Berezovskii, Arina"]
[Result "1-0"]
[Board "31"]
[TimeControl "180+2"]
[WhiteFideId "1307711"]
[BlackFideId "34449850"]
[WhiteElo "2045"]
[BlackElo "1851"]
[BlackTitle "WCM"]
[WhiteClock "0:00:03"]
[BlackClock "0:00:35"]
[Variant "Standard"]
[EndDate "2026.07.19"]
[EndTime "12:36:43"]

1. c4 {[%clk 0:03:03]}  e6 {[%clk 0:03:02]} 2. b3 {[%clk 0:03:04]}  d5 {[%clk 0:03:01]} 3. Bb2 {[%clk 0:03:05]}  Nf6 {[%clk 0:03:01]}
4. g3 {[%clk 0:03:07]}  c6 {[%clk 0:03:01]} 5. Bg2 {[%clk 0:03:08]}  Bd6 {[%clk 0:03:02]} 6. Nf3 {[%clk 0:03:09]}  O-O {[%clk 0:03:02]}
7. d3 {[%clk 0:03:11]}  Re8 {[%clk 0:03:00]} 8. Nbd2 {[%clk 0:03:11]}  Nbd7 {[%clk 0:02:58]} 9. e4 {[%clk 0:03:12]}  dxe4 {[%clk 0:02:55]}
10. dxe4 {[%clk 0:03:13]}  Qc7 {[%clk 0:02:45]} 11. O-O {[%clk 0:03:10]}  Ne5 {[%clk 0:02:46]} 12. Qe2 {[%clk 0:03:06]}  c5 {[%clk 0:02:37]}
13. Rad1 {[%clk 0:03:05]}  b6 {[%clk 0:02:37]} 14. Nb1 {[%clk 0:02:55]}  Nxf3+ {[%clk 0:02:22]} 15. Bxf3 {[%clk 0:02:55]}  Be5 {[%clk 0:02:20]}
16. Nc3 {[%clk 0:02:53]}  Bb7 {[%clk 0:02:20]} 17. Nb5 {[%clk 0:02:43]}  Qb8 {[%clk 0:02:18]} 18. Bg2 {[%clk 0:02:44]}  Bxb2 {[%clk 0:02:08]}
19. Qxb2 {[%clk 0:02:37]}  Rd8 {[%clk 0:01:46]} 20. e5 {[%clk 0:02:29]}  Bxg2 {[%clk 0:01:36]} 21. Kxg2 {[%clk 0:02:32]}  Ng4 {[%clk 0:01:19]}
22. Rxd8+ {[%clk 0:01:58]}  Qxd8 {[%clk 0:01:19]} 23. h3 {[%clk 0:01:54]}  Nh6 {[%clk 0:01:14]} 24. Qe2 {[%clk 0:01:52]}  Qe7 {[%clk 0:01:03]}
25. Rd1 {[%clk 0:01:48]}  Rd8 {[%clk 0:01:04]} 26. Rd6 {[%clk 0:01:43]}  a6 {[%clk 0:00:56]} 27. Qd3 {[%clk 0:01:37]}  Rxd6 {[%clk 0:00:45]}
28. exd6 {[%clk 0:01:38]}  Qd7 {[%clk 0:00:43]} 29. Qe4 {[%clk 0:01:20]}  f6 {[%clk 0:00:30]} 30. Qa8+ {[%clk 0:01:21]}  Kf7 {[%clk 0:00:30]}
31. Qxa6 {[%clk 0:01:19]}  Qc6+ {[%clk 0:00:28]} 32. Kg1 {[%clk 0:01:17]}  Qe4 {[%clk 0:00:22]} 33. Qxb6 {[%clk 0:00:57]}  Qe1+ {[%clk 0:00:22]}
34. Kg2 {[%clk 0:00:58]}  Qe4+ {[%clk 0:00:20]} 35. Kf1 {[%clk 0:00:57]}  Qh1+ {[%clk 0:00:18]} 36. Ke2 {[%clk 0:00:58]}  Qe4+ {[%clk 0:00:18]}
37. Kd2 {[%clk 0:01:00]}  Qb1 {[%clk 0:00:07]} 38. Qxc5 {[%clk 0:00:40]}  Qxa2+ {[%clk 0:00:06]} 39. Kc3 {[%clk 0:00:41]}  Qa1+ {[%clk 0:00:04]}
40. Kb4 {[%clk 0:00:41]}  Qe1+ {[%clk 0:00:04]} 41. Nc3 {[%clk 0:00:41]}  Qd2 {[%clk 0:00:01]} 42. Qc7+ {[%clk 0:00:41]}  Kg6 {[%clk 0:00:04]}
43. d7 {[%clk 0:00:43]}  Nf5 {[%clk 0:00:03]} 44. d8=Q {[%clk 0:00:41]}  Nd4 {[%clk 0:00:03]} 45. Qxd4 {[%clk 0:00:41]}  Qxd4 {[%clk 0:00:04]}
46. Qf4 {[%clk 0:00:39]}  Qb6+ {[%clk 0:00:04]} 47. Nb5 {[%clk 0:00:40]}  Qd8 {[%clk 0:00:03]} 48. Qd6 {[%clk 0:00:37]}  Qc8 {[%clk 0:00:03]}
49. c5 {[%clk 0:00:34]}  Qa8 {[%clk 0:00:03]} 50. c6 {[%clk 0:00:38]}  Qa1 {[%clk 0:00:04]} 51. Qd3+ {[%clk 0:00:38]}  Kf7 {[%clk 0:00:04]}
52. c7 {[%clk 0:00:37]}  Qe1+ {[%clk 0:00:04]} 53. Qc3 {[%clk 0:00:37]}  Qe4+ {[%clk 0:00:05]} 54. Qc4 {[%clk 0:00:37]}  Qe1+ {[%clk 0:00:04]}
55. Nc3 {[%clk 0:00:39]}  Qe5 {[%clk 0:00:03]} 56. c8=Q {[%clk 0:00:37]}  Qd6+ {[%clk 0:00:04]} 57. Q8c5 {[%clk 0:00:35]}  Qb8+ {[%clk 0:00:04]}
58. Nb5 {[%clk 0:00:34]}  Kg6 {[%clk 0:00:03]} 59. Qg4+ {[%clk 0:00:39]}  Kf7 {[%clk 0:00:03]} 60. Qc7+ {[%clk 0:00:35]} 1-0

[Event "2026 Biel Blitz Open"]
[Site "Biel, CH"]
[Date "2026.07.19"]
[Round "3"]
[White "Huang,Hsuan-Chen"]
[Black "Nguyen Thi Mai Hung"]
[Result "1-0"]
[Board "32"]
[TimeControl "180+2"]
[WhiteFideId "16303121"]
[BlackFideId "12401676"]
[WhiteElo "1833"]
[BlackElo "2039"]
[BlackTitle "WGM"]
[WhiteClock "0:00:31"]
[BlackClock "0:00:16"]
[Variant "Standard"]
[EndDate "2026.07.19"]
[EndTime "12:29:24"]

1. d4 {[%clk 0:03:02]}  d5 {[%clk 0:03:04]} 2. Nf3 {[%clk 0:03:03]}  Nf6 {[%clk 0:03:05]} 3. e3 {[%clk 0:03:04]}  c6 {[%clk 0:03:04]}
4. Nbd2 {[%clk 0:03:05]}  Bf5 {[%clk 0:03:04]} 5. h3 {[%clk 0:03:06]}  e6 {[%clk 0:03:05]} 6. g4 {[%clk 0:03:06]}  Bg6 {[%clk 0:03:06]}
7. Ne5 {[%clk 0:03:07]}  Nfd7 {[%clk 0:03:02]} 8. Nxg6 {[%clk 0:03:06]}  hxg6 {[%clk 0:03:03]} 9. Nf3 {[%clk 0:03:02]}  Bd6 {[%clk 0:03:04]}
10. Bd3 {[%clk 0:02:55]}  Qc7 {[%clk 0:03:00]} 11. Qe2 {[%clk 0:02:55]}  Nf6 {[%clk 0:03:01]} 12. e4 {[%clk 0:02:48]}  dxe4 {[%clk 0:02:55]}
13. Bxe4 {[%clk 0:02:49]}  Nxe4 {[%clk 0:02:22]} 14. Qxe4 {[%clk 0:02:50]}  Nd7 {[%clk 0:02:23]} 15. Qe2 {[%clk 0:02:50]}  Nf6 {[%clk 0:02:22]}
16. Ne5 {[%clk 0:02:37]}  O-O-O {[%clk 0:02:00]} 17. Bg5 {[%clk 0:02:32]}  Rdf8 {[%clk 0:01:33]} 18. O-O-O {[%clk 0:02:30]}  Nd5 {[%clk 0:01:28]}
19. Bd2 {[%clk 0:02:20]}  c5 {[%clk 0:01:13]} 20. Nf3 {[%clk 0:02:10]}  Kb8 {[%clk 0:01:13]} 21. Kb1 {[%clk 0:02:04]}  Rc8 {[%clk 0:01:11]}
22. c4 {[%clk 0:01:58]}  Nb6 {[%clk 0:01:09]} 23. dxc5 {[%clk 0:01:48]}  Qxc5 {[%clk 0:01:09]} 24. Be3 {[%clk 0:01:35]}  Qxc4 {[%clk 0:01:02]}
25. Qxc4 {[%clk 0:01:00]}  Nxc4 {[%clk 0:01:03]} 26. Rxd6 {[%clk 0:00:45]}  Nxd6 {[%clk 0:01:04]} 27. Bf4 {[%clk 0:00:46]}  Rcd8 {[%clk 0:00:52]}
28. Rd1 {[%clk 0:00:47]}  Kc7 {[%clk 0:00:54]} 29. Ne5 {[%clk 0:00:43]}  Kc8 {[%clk 0:00:43]} 30. Rc1+ {[%clk 0:00:42]}  Kb8 {[%clk 0:00:40]}
31. Nxf7 {[%clk 0:00:42]}  Ka8 {[%clk 0:00:40]} 32. Nxh8 {[%clk 0:00:39]}  Ne4 {[%clk 0:00:39]} 33. Nxg6 {[%clk 0:00:37]}  Nxf2 {[%clk 0:00:40]}
34. h4 {[%clk 0:00:35]}  a6 {[%clk 0:00:36]} 35. Be3 {[%clk 0:00:33]}  Nxg4 {[%clk 0:00:36]} 36. Bb6 {[%clk 0:00:33]}  Re8 {[%clk 0:00:36]}
37. Rc7 {[%clk 0:00:31]}  e5 {[%clk 0:00:32]} 38. Re7 {[%clk 0:00:24]}  Rxe7 {[%clk 0:00:31]} 39. Nxe7 {[%clk 0:00:25]}  e4 {[%clk 0:00:32]}
40. Nf5 {[%clk 0:00:26]}  g6 {[%clk 0:00:30]} 41. Ne3 {[%clk 0:00:27]}  Ne5 {[%clk 0:00:26]} 42. Bd8 {[%clk 0:00:28]}  Kb8 {[%clk 0:00:25]}
43. Bg5 {[%clk 0:00:29]}  Kc8 {[%clk 0:00:26]} 44. Kc2 {[%clk 0:00:30]}  Kd7 {[%clk 0:00:27]} 45. Kc3 {[%clk 0:00:31]}  Nf3 {[%clk 0:00:27]}
46. Nc4 {[%clk 0:00:24]}  Kc6 {[%clk 0:00:26]} 47. Nd2 {[%clk 0:00:25]}  Kd5 {[%clk 0:00:27]} 48. Nxf3 {[%clk 0:00:26]}  exf3 {[%clk 0:00:28]}
49. Kd3 {[%clk 0:00:27]}  a5 {[%clk 0:00:15]} 50. Ke3 {[%clk 0:00:28]}  Kc4 {[%clk 0:00:16]} 51. Bf6 {[%clk 0:00:29]}  a4 {[%clk 0:00:16]}
52. Kxf3 {[%clk 0:00:29]}  Kd3 {[%clk 0:00:17]} 53. Kg4 {[%clk 0:00:30]}  Kc2 {[%clk 0:00:16]} 54. a3 {[%clk 0:00:31]} 1-0

[Event "2026 Biel Blitz Open"]
[Site "Biel, CH"]
[Date "2026.07.19"]
[Round "3"]
[White "Marinkovic, Zoran"]
[Black "Kutonov, Yehor"]
[Result "1/2-1/2"]
[Board "33"]
[TimeControl "180+2"]
[WhiteFideId "1346083"]
[BlackFideId "1364804"]
[WhiteElo "2037"]
[BlackElo "1805"]
[WhiteClock "0:00:19"]
[BlackClock "0:00:22"]
[Variant "Standard"]
[EndDate "2026.07.19"]
[EndTime "12:27:56"]

1. e4 {[%clk 0:03:02]}  c5 {[%clk 0:03:04]} 2. Nf3 {[%clk 0:03:03]}  d6 {[%clk 0:03:05]} 3. d4 {[%clk 0:03:03]}  cxd4 {[%clk 0:03:06]}
4. Nxd4 {[%clk 0:03:04]}  Nf6 {[%clk 0:03:08]} 5. Nc3 {[%clk 0:03:05]}  g6 {[%clk 0:03:09]} 6. Be3 {[%clk 0:03:02]}  Nc6 {[%clk 0:03:11]}
7. f3 {[%clk 0:03:01]}  h5 {[%clk 0:03:12]} 8. Qd2 {[%clk 0:02:58]}  Nxd4 {[%clk 0:03:12]} 9. Bxd4 {[%clk 0:02:58]}  Bh6 {[%clk 0:03:13]}
10. Be3 {[%clk 0:02:59]}  Bxe3 {[%clk 0:03:13]} 11. Qxe3 {[%clk 0:03:00]}  Be6 {[%clk 0:03:15]} 12. Bd3 {[%clk 0:02:39]}  Qa5 {[%clk 0:03:13]}
13. O-O {[%clk 0:02:22]}  Rc8 {[%clk 0:03:14]} 14. a3 {[%clk 0:02:12]}  Qc5 {[%clk 0:03:14]} 15. Qxc5 {[%clk 0:01:58]}  Rxc5 {[%clk 0:03:15]}
16. Ne2 {[%clk 0:01:46]}  a6 {[%clk 0:03:00]} 17. Nd4 {[%clk 0:01:41]}  Kf8 {[%clk 0:02:53]} 18. f4 {[%clk 0:01:25]}  Bc4 {[%clk 0:02:44]}
19. Rf2 {[%clk 0:00:54]}  Kg7 {[%clk 0:02:14]} 20. f5 {[%clk 0:00:52]}  Ng4 {[%clk 0:01:56]} 21. Rf3 {[%clk 0:00:51]}  Ne5 {[%clk 0:01:52]}
22. Rg3 {[%clk 0:00:51]}  h4 {[%clk 0:01:43]} 23. Re3 {[%clk 0:00:50]}  g5 {[%clk 0:01:15]} 24. Rae1 {[%clk 0:00:29]}  Kf6 {[%clk 0:01:16]}
25. b3 {[%clk 0:00:23]}  Bxd3 {[%clk 0:01:05]} 26. cxd3 {[%clk 0:00:20]}  Rc3 {[%clk 0:01:06]} 27. Rd1 {[%clk 0:00:20]}  Rhc8 {[%clk 0:01:00]}
28. a4 {[%clk 0:00:19]}  Ng4 {[%clk 0:00:56]} 29. Ree1 {[%clk 0:00:18]}  Ne5 {[%clk 0:00:40]} 30. Re3 {[%clk 0:00:17]}  Ng4 {[%clk 0:00:21]}
31. Ree1 {[%clk 0:00:17]}  Ne5 {[%clk 0:00:22]} 32. Re3 {[%clk 0:00:19]} 1/2-1/2

[Event "2026 Biel Blitz Open"]
[Site "Biel, CH"]
[Date "2026.07.19"]
[Round "3"]
[White "Hirzel, Robin"]
[Black "Jelicic, Hugo"]
[Result "1/2-1/2"]
[Board "34"]
[TimeControl "180+2"]
[WhiteFideId "1342320"]
[BlackFideId "1349040"]
[WhiteElo "2022"]
[BlackElo "1804"]
[WhiteClock "0:00:20"]
[BlackClock "0:00:13"]
[Variant "Standard"]
[EndDate "2026.07.19"]
[EndTime "12:35:49"]

1. Nf3 {[%clk 0:03:03]}  d5 {[%clk 0:03:03]} 2. e3 {[%clk 0:03:04]}  Nf6 {[%clk 0:03:03]} 3. c4 {[%clk 0:03:05]}  e6 {[%clk 0:03:00]}
4. Nc3 {[%clk 0:03:06]}  c5 {[%clk 0:03:01]} 5. cxd5 {[%clk 0:03:07]}  exd5 {[%clk 0:03:02]} 6. d4 {[%clk 0:03:08]}  Nc6 {[%clk 0:02:59]}
7. b3 {[%clk 0:03:01]}  cxd4 {[%clk 0:02:53]} 8. Nxd4 {[%clk 0:03:01]}  Bb4 {[%clk 0:02:46]} 9. Bd2 {[%clk 0:03:02]}  O-O {[%clk 0:02:43]}
10. Nc2 {[%clk 0:02:54]}  Ba5 {[%clk 0:02:32]} 11. Bb5 {[%clk 0:02:45]}  Bg4 {[%clk 0:02:10]} 12. Be2 {[%clk 0:02:39]}  Bxe2 {[%clk 0:02:09]}
13. Nxe2 {[%clk 0:02:33]}  Bxd2+ {[%clk 0:01:59]} 14. Qxd2 {[%clk 0:02:34]}  Ne4 {[%clk 0:02:00]} 15. Qd1 {[%clk 0:02:20]}  Qa5+ {[%clk 0:01:59]}
16. Kf1 {[%clk 0:02:12]}  Rad8 {[%clk 0:01:55]} 17. Ncd4 {[%clk 0:02:09]}  Nxd4 {[%clk 0:01:42]} 18. Nxd4 {[%clk 0:02:08]}  Rd6 {[%clk 0:01:26]}
19. Qe1 {[%clk 0:01:47]}  Qd8 {[%clk 0:01:07]} 20. Rc1 {[%clk 0:01:08]}  Qd7 {[%clk 0:00:58]} 21. f3 {[%clk 0:01:01]}  Rf6 {[%clk 0:00:53]}
22. Qe2 {[%clk 0:00:37]}  Rc8 {[%clk 0:00:50]} 23. Qd1 {[%clk 0:00:27]}  Rc7 {[%clk 0:00:33]} 24. Rxc7 {[%clk 0:00:26]}  Qxc7 {[%clk 0:00:34]}
25. Qc2 {[%clk 0:00:27]}  Qxc2 {[%clk 0:00:32]} 26. Nxc2 {[%clk 0:00:29]}  Nc3 {[%clk 0:00:21]} 27. Kf2 {[%clk 0:00:20]}  Ra6 {[%clk 0:00:16]}
28. Nb4 {[%clk 0:00:19]}  Ra5 {[%clk 0:00:18]} 29. Rc1 {[%clk 0:00:18]}  Rc5 {[%clk 0:00:10]} 30. Nxd5 {[%clk 0:00:17]}  Rxd5 {[%clk 0:00:10]}
31. Rxc3 {[%clk 0:00:18]}  g6 {[%clk 0:00:10]} 32. Ke2 {[%clk 0:00:19]}  Kg7 {[%clk 0:00:10]} 33. Rc7 {[%clk 0:00:20]}  Rb5 {[%clk 0:00:12]}
34. h4 {[%clk 0:00:19]}  h5 {[%clk 0:00:13]} 35. g3 {[%clk 0:00:20]} 1/2-1/2

[Event "2026 Biel Blitz Open"]
[Site "Biel, CH"]
[Date "2026.07.19"]
[Round "3"]
[White "Delesenne, Arthur"]
[Black "Mikavica, Mirko"]
[Result "1/2-1/2"]
[Board "35"]
[TimeControl "180+2"]
[WhiteFideId "276979"]
[BlackFideId "908657"]
[WhiteElo "1789"]
[BlackElo "2015"]
[WhiteClock "0:00:03"]
[BlackClock "0:00:08"]
[Variant "Standard"]
[EndDate "2026.07.19"]
[EndTime "12:37:30"]

1. d4 {[%clk 0:03:04]}  d5 {[%clk 0:03:02]} 2. c4 {[%clk 0:03:05]}  e6 {[%clk 0:03:04]} 3. Nf3 {[%clk 0:03:04]}  a6 {[%clk 0:03:06]}
4. cxd5 {[%clk 0:03:00]}  exd5 {[%clk 0:03:07]} 5. Nc3 {[%clk 0:03:00]}  Nf6 {[%clk 0:03:08]} 6. Bg5 {[%clk 0:03:01]}  Be7 {[%clk 0:03:00]}
7. e3 {[%clk 0:03:02]}  b5 {[%clk 0:02:56]} 8. Bd3 {[%clk 0:02:56]}  Bb7 {[%clk 0:02:54]} 9. O-O {[%clk 0:02:55]}  Nbd7 {[%clk 0:02:56]}
10. Rc1 {[%clk 0:02:44]}  O-O {[%clk 0:02:53]} 11. a3 {[%clk 0:02:43]}  Nb6 {[%clk 0:02:39]} 12. Ne5 {[%clk 0:02:41]}  Nc4 {[%clk 0:02:31]}
13. Qc2 {[%clk 0:02:32]}  h6 {[%clk 0:02:24]} 14. Bxf6 {[%clk 0:02:20]}  Bxf6 {[%clk 0:02:24]} 15. Nf3 {[%clk 0:02:14]}  Qd6 {[%clk 0:02:09]}
16. Nb1 {[%clk 0:02:02]}  Rac8 {[%clk 0:01:54]} 17. b4 {[%clk 0:02:01]}  c6 {[%clk 0:01:40]} 18. Nfd2 {[%clk 0:01:53]}  a5 {[%clk 0:01:29]}
19. bxa5 {[%clk 0:01:43]}  Nxa5 {[%clk 0:01:18]} 20. Nb3 {[%clk 0:01:40]}  Nc4 {[%clk 0:01:10]} 21. Bxc4 {[%clk 0:01:35]}  bxc4 {[%clk 0:01:06]}
22. Nc5 {[%clk 0:01:35]}  Rb8 {[%clk 0:01:03]} 23. Qf5 {[%clk 0:01:31]}  Bc8 {[%clk 0:01:02]} 24. Qf3 {[%clk 0:01:28]}  Re8 {[%clk 0:00:55]}
25. Nc3 {[%clk 0:01:26]}  g6 {[%clk 0:00:32]} 26. a4 {[%clk 0:01:27]}  h5 {[%clk 0:00:30]} 27. h3 {[%clk 0:01:27]}  Kg7 {[%clk 0:00:31]}
28. a5 {[%clk 0:01:24]}  Ra8 {[%clk 0:00:29]} 29. Ra1 {[%clk 0:01:22]}  Re7 {[%clk 0:00:24]} 30. Rfb1 {[%clk 0:01:12]}  Rea7 {[%clk 0:00:25]}
31. a6 {[%clk 0:00:57]}  Bxa6 {[%clk 0:00:20]} 32. Nxa6 {[%clk 0:00:33]}  Rxa6 {[%clk 0:00:22]} 33. Rxa6 {[%clk 0:00:33]}  Rxa6 {[%clk 0:00:24]}
34. g3 {[%clk 0:00:29]}  Qc7 {[%clk 0:00:19]} 35. Kg2 {[%clk 0:00:28]}  Ra3 {[%clk 0:00:14]} 36. Ne2 {[%clk 0:00:25]}  c3 {[%clk 0:00:08]}
37. Rc1 {[%clk 0:00:25]}  Qa5 {[%clk 0:00:10]} 38. Rc2 {[%clk 0:00:11]}  Qb4 {[%clk 0:00:07]} 39. e4 {[%clk 0:00:07]}  Qb3 {[%clk 0:00:07]}
40. Qd3 {[%clk 0:00:07]}  dxe4 {[%clk 0:00:07]} 41. Qxe4 {[%clk 0:00:07]}  c5 {[%clk 0:00:08]} 42. d5 {[%clk 0:00:06]}  Ra2 {[%clk 0:00:08]}
43. Rxa2 {[%clk 0:00:03]} 1/2-1/2

[Event "2026 Biel Blitz Open"]
[Site "Biel, CH"]
[Date "2026.07.19"]
[Round "3"]
[White "El-Mais, Ibaa"]
[Black "Zumbrunn, Simon"]
[Result "1-0"]
[Board "36"]
[TimeControl "180+2"]
[WhiteFideId "1312715"]
[BlackFideId "1364146"]
[WhiteElo "2012"]
[BlackElo "1802"]
[WhiteClock "0:00:24"]
[BlackClock "0:00:16"]
[Variant "Standard"]
[EndDate "2026.07.19"]
[EndTime "12:36:27"]

1. d4 {[%clk 0:03:02]}  Nf6 {[%clk 0:03:04]} 2. Nf3 {[%clk 0:03:02]}  c5 {[%clk 0:03:05]} 3. e3 {[%clk 0:03:03]}  cxd4 {[%clk 0:03:05]}
4. exd4 {[%clk 0:03:04]}  g6 {[%clk 0:03:06]} 5. c3 {[%clk 0:02:53]}  Bg7 {[%clk 0:03:07]} 6. Bd3 {[%clk 0:02:49]}  d6 {[%clk 0:03:09]}
7. O-O {[%clk 0:02:47]}  Nc6 {[%clk 0:03:07]} 8. Re1 {[%clk 0:02:40]}  O-O {[%clk 0:03:08]} 9. h3 {[%clk 0:02:14]}  a6 {[%clk 0:03:09]}
10. a4 {[%clk 0:02:15]}  b6 {[%clk 0:03:06]} 11. Bf4 {[%clk 0:01:52]}  Bb7 {[%clk 0:03:04]} 12. Nbd2 {[%clk 0:01:48]}  Nd5 {[%clk 0:02:29]}
13. Bg5 {[%clk 0:01:46]}  Qd7 {[%clk 0:02:14]} 14. Bc4 {[%clk 0:01:22]}  Nf6 {[%clk 0:01:38]} 15. Qe2 {[%clk 0:01:15]}  e6 {[%clk 0:01:28]}
16. Rad1 {[%clk 0:00:54]}  h6 {[%clk 0:01:23]} 17. Bh4 {[%clk 0:00:50]}  Nh5 {[%clk 0:01:16]} 18. Qe3 {[%clk 0:00:37]}  Ne7 {[%clk 0:00:59]}
19. g4 {[%clk 0:00:33]}  g5 {[%clk 0:00:25]} 20. Bxg5 {[%clk 0:00:23]}  hxg5 {[%clk 0:00:16]} 21. gxh5 {[%clk 0:00:24]}  Bh6 {[%clk 0:00:00]} 1-0